{"text_format":"1","workbook":"xlsx","n_sheets":4,"sheets":["Cálculo de Demanda","Base de Cálculo","OBSERVAÇÕES","CONTROLE_REVISÃO"],"not_rendered":{"charts":0,"images":3,"macros":1,"external_links":0,"defined_names":1,"comments":0,"pivot_tables":0},"unopened":[],"bounds":{"document_bytes":16777216,"sheet_cells":100000,"rows_first":2000,"rows_last":500,"rows_between":2000,"halvings":0,"cell_chars":16384,"cell_head_chars":4096},"cells_cut":0,"cells_raw":0,"read":"whole","date_system":"1900"}

{"sheet":"Cálculo de Demanda","index":0,"n_rows":84,"n_cols":17,"rows_kept":84,"cut":false,"hidden":false,"merged":[[0,1,0,11],[39,6,39,8],[35,6,35,8],[30,0,30,2],[34,0,34,2],[35,0,35,2],[32,0,33,5],[31,0,31,2],[38,0,38,2],[27,0,27,2],[28,0,28,2],[28,6,28,8],[33,6,33,8],[29,6,30,11],[1,1,1,11],[7,0,7,2],[13,6,13,8],[4,6,4,8],[10,0,10,2],[11,0,11,2],[10,6,10,8],[2,1,2,4],[8,6,8,8],[16,6,16,8],[59,0,59,2],[59,3,59,5],[58,2,58,3],[40,0,40,2],[49,0,49,2],[46,6,46,8],[44,0,45,5],[47,6,47,8],[40,6,40,8],[55,6,55,8],[43,0,43,2],[50,0,51,5],[50,6,51,11],[59,6,59,8],[45,6,45,8],[46,0,46,2],[56,0,56,1],[56,2,56,11],[57,2,57,3],[57,4,57,5],[43,6,43,8],[44,6,44,8],[42,6,42,8],[41,6,41,8],[4,0,4,2],[20,0,20,2],[14,6,14,8],[11,6,11,8],[8,0,8,2],[20,6,20,8],[26,0,26,2],[3,1,3,4],[5,6,6,11],[3,9,3,11],[12,6,12,8],[9,6,9,8],[17,0,17,2],[9,0,9,2],[15,6,15,8],[15,0,15,2],[17,6,17,8],[16,0,16,2],[32,6,32,8],[31,6,31,8],[25,0,25,2],[27,6,27,8],[22,6,22,8],[26,6,26,8],[21,0,21,2],[18,6,19,11],[23,0,23,2],[19,0,19,2],[22,0,22,2],[24,6,24,8],[25,6,25,8],[23,6,23,8],[66,0,66,5],[64,4,64,5],[54,6,54,8],[47,0,47,2],[57,8,57,9],[58,8,58,9],[53,0,53,2],[49,6,49,8],[57,10,57,11],[53,6,53,8],[55,0,55,2],[54,0,54,2],[58,4,58,5],[66,6,66,11],[60,9,60,11],[58,10,58,11],[59,9,59,11],[60,0,60,1],[60,3,60,4],[61,0,61,2],[61,3,61,5],[61,6,61,8],[61,9,61,11],[60,6,60,8],[38,6,38,8],[34,6,34,8],[36,6,36,8],[37,6,37,8],[1,15,1,18],[52,0,52,2],[12,0,12,2],[13,0,13,2],[14,0,14,2],[52,6,52,8],[48,6,48,8],[41,0,41,2],[48,0,48,2],[2,9,2,10],[39,0,39,2],[36,0,36,2],[42,0,42,2],[37,0,37,2],[5,0,6,5],[18,0,18,2],[24,0,24,2],[29,0,29,2],[7,6,7,8],[21,6,21,8]]}
[null,"Cálculo do Tipo de Fornecimento (Residencial - GED 13 CPFL PIRATININGA)"]
["Nome:"]
["Consumidor:",null,null,null,null,null,null,null,"Classe:","RESIDENCIAL"]
["Processo:",null,null,null,null,null,null,"Data:","Mairinque ",{"$f":"TODAY()","v":"2019-08-01"},null,null,null,null,null,"POTÊNCIA","POTÊNCIA"]
["DESCRIÇÃO",null,null,"W*","QTDE","TOTAL","DESCRIÇÃO",null,null,"W*","QTDE","TOTAL",null,null,null,"NOMINAL","ABSORVIDA"]
["GRUPO 1 - TOMADAS/ILUMINAÇÃO/EQUIPAMENTOS DE USO GERAL",null,null,null,null,null,"GRUPO 4 - SECADORA DE ROUPA/FORNO ELÉTRICO/MÁQUINA DE LAVAR LOUÇA/FORNO MICROONDAS",null,null,null,null,null,null,null,null,"Cv ou HP","DA REDE"]
[null,null,null,null,null,null,null,null,null,null,null,null,null,null,null,"1/4 CV",580]
["LÂMPADA INCAND. 40W",null,null,40,null,{"$f":"(D8*E8)","v":0},"ASPIRADOR DE PÓ",null,null,1000,null,{"$f":"(J8*K8)","v":0},null,null,null,"1/3 CV",650]
["LÂMPADA INCAND. 60W",null,null,60,null,0,"LAVADORA DE ROUPA",null,null,2000,null,{"$f":"(J9*K9)","v":0},null,null,null,"1/2 CV",870]
["LÂMPADA INCAND. 100W",null,null,100,null,0,"SECADORA DE ROUPA",null,null,2500,null,0,null,null,null,"3/4 CV",1260]
["LÂMPADA INCAND. 150W",null,null,150,null,0,"LAVADOURA DE LOUÇA",null,null,2000,null,0,null,null,null,"1 CV",1520]
["LÂMPADA ECON./FLUOR. 15W",null,null,15,null,0,"FORNO DE MICROONDAS",null,null,1500,null,0,null,null,null,"1 1/2 CV",2170]
["LÂMPADA ECON./FLUOR. 20W",null,null,20,null,0,"FORNO ELÉTRICO(DOMÉSTICO)",null,null,1500,null,0,null,null,null,"2 CV",2700]
["LÂMPADA ECON./FLUOR. 25W",null,null,25,null,0,"TORRADEIRA ELÉTRICA",null,null,800,null,0,null,null,null,"3 CV",4040]
["LÂMPADA ECON./FLUOR. 32W",null,null,32,null,0,"FERRO ELÉTRICO",null,null,1000,null,0,null,null,null,"4 CV",5030]
["LÂMPADA MISTA 250W",null,null,250,null,0,null,null,null,null,null,0,null,null,null,"5 CV",6020]
["REFLETOR ",null,null,500,null,0,null,null,null,null,null,0,null,null,null,"6 CV",7000]
["TOMADAS - USO GERAL",null,null,100,null,0,null,null,null,null,null,0,null,null,null,"7 1/2 CV",8650]
["TOMADAS - USO ESPECÍFICO",null,null,600,null,0,"GRUPO 6 - APARELHO DE AR CONDICIONADO TIPO JANELA PARA USO COMERCIAL",null,null,null,null,null,null,null,null,"10 CV",11540]
["MICROCOMPUTADOR",null,null,330,null,0,null,null,null,null,null,null,null,null,null,"12 1/2 CV",14090]
["VENTILADOR",null,null,130,null,0,"AR CONDICIONADO 7100BTU's",null,null,900,null,{"$f":"(J21*K21)","v":0},{"$f":"K21*1100","v":0},null,null,"15 CV",16650]
["LIQUIDIFICADOR",null,null,350,null,0,"AR CONDICIONADO 8500BTU's",null,null,1300,null,{"$f":"(J22*K22)","v":0},{"$f":"K22*1550","v":0},null,null,"20 CV",22100]
["GELADEIRA",null,null,600,null,0,"AR CONDICIONADO 10000BTU's",null,null,1400,null,0,{"$f":"K23*1650","v":0},null,null,"25 CV",25830]
["FREEZER",null,null,350,null,0,"AR CONDICIONADO 12000BTU's",null,null,1600,null,0,{"$f":"K24*1900","v":0},null,null,"30 CV",30520]
["BATEDEIRA",null,null,200,null,0,"AR CONDICIONADO 14000BTU's",null,null,1900,null,0,{"$f":"K25*2100","v":0},null,null,"40 CV",39740]
["CERCA ELÉTRICA",null,null,100,null,0,"AR CONDICIONADO 18000BTU's",null,null,2600,null,0,{"$f":"K26*2860","v":0},null,null,"50 CV",48730]
["LÂMPADAS DE LED 9W",null,null,12,null,0,"AR CONDICIONADO 21000BTU's",null,null,2800,null,0,{"$f":"K27*3080","v":0},null,null,"60 CV",58150]
[null,null,null,null,null,0,"AR CONDICIONADO 30000BTU's",null,null,3600,null,0,{"$f":"K28*4000","v":0},null,null,"75 CV",72280]
[null,null,null,null,null,0,null,null,null,null,null,0,{"$f":"L29","v":0},null,null,"100 CV",97050]
[null,null,null,null,null,0,"GRUPO 7 - MOTORES",null,null,null,null,null,null,null,null,"125 CV",114560]
[null,null,null,null,null,0,null,null,null,null,null,null,null,null,null,"150 CV",128020]
[null,null,null,null,null,0,"MOTOR 1/2CV** (TANQUINHO)",null,null,580,null,{"$f":"(J32*K32)","v":0},{"$f":"870*K32","v":0},null,null,"175 CV",170890]
["GRUPO 2 - CHUVEIROS/TORNEIRAS/AQUECEDORES DE ÁGUA DE PASSAGEM/FERROS ELÉTRICOS",null,null,null,null,null,"MOTOR 3/4CV**",null,null,830,null,{"$f":"(J33*K33)","v":0},{"$f":"1260*K33","v":0},null,null,"200 CV",196390]
[null,null,null,null,null,null,"MOTOR 1CV**(BOMBA POÇO)",null,null,1050,null,0,{"$f":"1520*K34","v":0},null,null,"250 CV IRRIG.",242820]
["CHUVEIRO 5400W",null,null,5400,null,{"$f":"(D35*E35)","v":0},"MOTOR 1 1/2CV**",null,null,1540,null,0,{"$f":"2170*K35","v":0},null,null,"300 CV IRRIG.",286970]
["CHUVEIRO 7500 W",null,null,7500,null,0,"MOTOR 2CV** (BOMBA PISCINA)",null,null,1950,null,0,{"$f":"2700*K36","v":0}]
["BOILER AQUECEDOR SOLAR",null,null,1500,null,0,"MOTOR 3CV**",null,null,2950,null,0,{"$f":"4040*K37","v":0}]
["FERRO DE PASSAR ",null,null,1000,null,0,"MOTOR 5CV**",null,null,4510,null,0,{"$f":"6020*K38","v":0}]
["TORNEIRA ELÉTRICA",null,null,3000,null,0,"MOTOR 7 1/2 CV**",null,null,6570,null,0,{"$f":"8650*K39","v":0}]
["SECADOR DE CABELOS",null,null,1000,null,0,"MOTOR 10CV**",null,null,8890,null,0,{"$f":"11540*K40","v":0}]
[null,null,null,null,null,0,"MOTOR 15CV**",null,null,12820,null,0,{"$f":"16650*K41","v":0}]
[null,null,null,null,null,0,"MOTOR 25CV**",null,null,20920,null,0,{"$f":"25830*K42","v":0}]
[null,null,null,null,null,0,"MOTOR 30 CV**",null,null,25030,null,0,{"$f":"30520*K43","v":0}]
[null,null,null,null,null,0,"MOTOR 40 CV**",null,null,33380,null,0,{"$f":"39740*K44","v":0}]
["GRUPO 3 - AQUECEDOR CENTRAL OU DE ACUMULAÇÃO (BOILE)",null,null,null,null,null,"MOTOR 50 CV**",null,null,40930,null,0,{"$f":"48730*K45","v":0}]
[null,null,null,null,null,null,"MOTOR 60 CV**",null,null,49420,null,0,{"$f":"58150*K46","v":0}]
["ESTUFA ELÉTRICA(AQUECEDOR)",null,null,3500,null,{"$f":"(D47*E47)","v":0},"MOTOR 75 CV**",null,null,61440,null,{"$f":"(J47*K47)","v":0},{"$f":"72280*K47","v":0}]
["SAUNA SECA",null,null,6000,null,{"$f":"(D48*E48)","v":0},"MOTOR 100CV**",null,null,81230,null,{"$f":"(J48*K48)","v":0},{"$f":"97050*K48","v":0}]
["SAUNA A VAPOR",null,null,9000,null,{"$f":"(D49*E49)","v":0},null,null,null,null,null,0,{"$f":"L49","v":0}]
[null,null,null,null,null,{"$f":"(D50*E50)","v":0},null,null,null,null,null,0,{"$f":"L50","v":0}]
["GRUPO 8 - MÁQUINAS DE SOLDA/APARELHOS DE RAIO X/ELETROGALVANIZAÇÃO",null,null,null,null,null,"GRUPO 9 - HIDROMASSAGEM"]
[]
["MÁQUINAS DE SOLDA",null,null,4000,null,{"$f":"(D53*E53)","v":0},"HIDROMASSAGEM",null,null,500,null,{"$f":"SUM(K53*J53)","v":0}]
["ORDENHADEIRA",null,null,736,null,{"$f":"(D54*E54)","v":0},"AQUEC. P/HIDROMASSAGEM",null,null,4500,null,{"$f":"SUM(K54*J54)","v":0}]
["RESFRIADOR DE LEITE",null,null,736,null,{"$f":"(D55*E55)","v":0},null,null,null,null,null,{"$f":"SUM(K55*J55)","v":0}]
[null,null,null,null,null,{"$f":"(D56*E56)","v":0},null,null,null,null,null,{"$f":"SUM(K56*J56)","v":0}]
["Carga",null,"Características da Instalação"]
["Instalada","Demanda","Tipo de Instalação",null,"Cabo Entrada/Saída",null,"Disjuntor","Eletroduto","Cabo Aterr.",null,"Eletroduto",null,{"$f":"IF(AND('Cálculo de Demanda'!B59<=47,'Cálculo de Demanda'!A59<=75,'Base de Cálculo'!F27<=30520),\"C4\",IF(AND('Cálculo de Demanda'!B59<=57,'Cálculo de Demanda'!A59<=75,'Base de Cálculo'!F27<=39740),\"C5\",IF(AND('Cálculo de Demanda'!B59<=76,'Cálculo de Demanda'!A59<=75,'Base de Cálculo'!F27<=48730),\"C6\",\"A.T.\")))","v":"C4"}]
[{"$f":"(SUM(L8:L18)+SUM(M21:M29)+SUM(M32:M50)+SUM(L53:L56)+SUM(F8:F56))/1000","v":0},{"$f":"SUM('Base de Cálculo'!D3+'Base de Cálculo'!D7+'Base de Cálculo'!D11+'Base de Cálculo'!D15+'Base de Cálculo'!D19+'Base de Cálculo'!E39+'Base de Cálculo'!D48+'Base de Cálculo'!E56)/1000","v":0},{"$f":"IF(OR(F61=\"A1\",F61=\"A2\"),\"MONOFÁSICA\",IF(OR(F61=\"B1\",F61=\"B2\"),\"BIFÁSICO\",IF(OR(F61=\"C1\",F61=\"C2\",F61=\"C3\",F61=\"C4\",F61=\"C5\",F61=\"C6\"),\"TRIFÁSICO\",\"A. TENSÃO\")))","v":"A. TENSÃO"},null,{"$f":"IF(F61=\"A1\",\"6 mm²\",IF(OR(F61=\"A2\",F61=\"B1\",F61=\"C1\"),\"16 mm²\",IF(OR(F61=\"B2\",F61=\"C2\"),\"25 mm²\",IF(F61=\"C3\",\"35 mm²\",IF(F61=\"C4\",\"50 mm²\",IF(F61=\"C5\",\"70 mm²\",IF(F61=\"C6\",\"95 mm²\",\"A.TENSÃO\")))))))","v":"A.TENSÃO"},null,{"$f":"IF(F61=\"A1\",\"DJ 32A\",IF(OR(F61=\"B1\",F61=\"C1\",F61=\"A2\"),\"DJ 63A\",IF(OR(F61=\"C2\",F61=\"B2\"),\"DJ 80A\",IF(F61=\"C3\",\"DJ 100A\",IF(F61=\"C4\",\"DJ 125A\",IF(F61=\"C5\",\"DJ 150A\",IF(F61=\"C6\",\"DJ 200A\",\"A.TENSÃO\")))))))","v":"A.TENSÃO"},{"$f":"IF(OR(F61=\"A1\",F61=\"A2\",F61=\"B1\"),\"32mm²  ou 1''\",IF(OR(F61=\"B2\",F61=\"C1\",F61=\"C2\",F61=\"C3\"),\"40mm² ou 1''1/4\",IF(F61=\"C4\",\"50mm² ou 1''1/2\",IF(OR(F61=\"C5\",F61=\"C6\"),\"60mm² ou 2''\",\"A. TENSÃO\"))))","v":"A. TENSÃO"},{"$f":"IF(F61=\"A1\",\"6 mm²\",IF(OR(F61=\"A2\",F61=\"B1\",F61=\"B2\",F61=\"C1\",F61=\"C2\",F61=\"C3\"),\"10 mm²\",IF(F61=\"C4\",\"16 mm²\",IF(F61=\"C5\",\"25 mm²\",IF(F61=\"C6\",\"35 mm²\",\"A. TENSÃO\")))))","v":"A. TENSÃO"},null,{"$f":"IF(OR(F61=\"A1\",F61=\"A2\",F61=\"B1\",F61=\"B2\",F61=\"C1\",F61=\"C2\",F61=\"C3\",F61=\"C4\",F61=\"C5\",F61=\"C6\"),\"20 mm ou 1/2''\",\"ALTA TENSÃO\")","v":"ALTA TENSÃO"},null,{"$f":"IF(F61=\"C5\",\"50 mm² - Quadruplex\",IF(F61=\"C6\",\"70 mm² - Quadruplex\",\"A. TENSÃO\"))","v":"A. TENSÃO"}]
["Ramal de Ligação",null,null,{"$f":"IF(F61=\"A1\",\"10 mm² - Duplex\",IF(F61=\"A2\",\"10 mm² - Triplex\",IF(F61=\"B1\",\"16 mm² - Triplex\",IF(F61=\"B2\",\"25 mm² - Triplex\",IF(F61=\"C1\",\"10 mm² - Quadruplex\",IF(F61=\"C2\",\"16 mm² - Quadruplex\",IF(F61=\"C3\",\"25 mm² - Quadruplex\",IF(F61=\"C4\",\"35 mm² - Quadruplex\",M59))))))))","v":"A. TENSÃO"},null,null,"Caixa de Medição",null,null,"Poste Concreto"]
["Categoria - Dimensionada ",null,{"$f":"IF(AND(A59<=6,'Base de Cálculo'!F27<=1520),\"A1\",IF(AND(A59<=12,'Base de Cálculo'!F27<=2700),\"A2\",IF(AND(A59<=18,'Base de Cálculo'!F27<=4040),\"B1\",IF(AND(A59<=25,'Base de Cálculo'!F27<=6020),\"B2\",IF(AND(B59<=23,A59<=75,'Base de Cálculo'!F27<=16650),\"C1\",IF(AND(B59<=30,A59<=75,'Base de Cálculo'!F27<=22100),\"C2\",IF(AND(B59<=38,A59<=75,'Base de Cálculo'!F27<=25830),\"C3\",M58)))))))","v":"A1"},"Categoria - Solicitada ",null,null,{"$f":"IF(OR(F61=\"A1\",F61=\"A2\",F61=\"B1\",F61=\"B2\"),\"Cx. Tipo II ou IV\",IF(OR(F61=\"C1\",F61=\"C2\",F61=\"C3\"),\"Cx. Tipo III ou  V\",IF(OR(F61=\"C4\",F61=\"C5\",F61=\"C6\"),\"Cx. L + T ou Cx. M\",\"A. TENSÃO\")))","v":"A. TENSÃO"},null,null,{"$f":"IF(OR(F61=\"A1\",F61=\"A2\",F61=\"B1\",F61=\"B2\",F61=\"C1\",F61=\"C2\",F61=\"C3\"),\"Poste Concreto 90 daN\",IF(F61=\"C4\",\"Poste Concreto 200 daN\",IF(OR(F61=\"C5\",F61=\"C6\"),\"Poste Concreto 300 daN\",\"A. TENSÃO\")))","v":"A. TENSÃO"}]
["LIGAÇÃO PROVISÓRIA:",null,null,"NÃO",null,null,"HÁ EDIFICAÇÃO:",null,null,"SIM"]
[]
[]
[]
[]
["ASSINATURA DO RESPONSÁVEL",null,null,null,null,null,{"$f":"IF(OR(C61=\"A1\",C61=\"A2\",C61=\"B1\",C61=\"B2\",C61=\"C1\",C61=\"C2\",C61=\"C3\"),\"Executar dentro das Normas CPFL e ABNT\",IF(OR(C61=\"C4\",C61=\"C5\",C61=\"C6\"),\"ART de  Projeto e Execução\",\"Projeto para Análise em Alta Tensão\"))","v":"Executar dentro das Normas CPFL e ABNT"}]
[]
[null,null,null,null,{"$f":"C61","v":"A1"}]
[null,null,null,null,"A1"]
[null,null,null,null,"A2"]
[null,null,null,null,"B1"]
["NENHUM",null,null,null,"B2"]
["RESIDENCIAL",null,null,null,"C1"]
["COMERCIAL",null,null,null,"C2"]
["INDUSTRIAL",null,null,null,"C3"]
["RURAL",null,null,null,"C4"]
["PODER PÚBLICO",null,null,null,"C5"]
["SERVIÇO PÚBLICO",null,null,null,"C6"]
["ILUMINAÇÃO PÚBLICA"]
[]
["N/I"]
["SIM"]
["NÃO"]

{"sheet":"Base de Cálculo","index":1,"n_rows":56,"n_cols":6,"rows_kept":56,"cut":false,"hidden":true,"merged":[[55,4,55,5],[28,4,31,5],[33,4,33,5],[34,4,34,5],[36,4,37,5],[38,4,39,5],[32,4,32,5],[35,4,35,5],[26,4,27,4],[26,5,27,5],[49,2,49,5],[51,2,51,3],[54,4,54,5]]}
[null,null,"GRUPO 1 - Tomadas Iluminação"]
[null,null,"CARGA",{"$f":"SUM('Cálculo de Demanda'!F8:F32)","v":0},"W"]
[null,null,"DEMANDA",{"$f":"IF(D2<=1000,D2*0.86,IF(AND(1000<D2,D2<=2000),D2*0.75,IF(AND(2000<D2,D2<=3000),D2*0.66,IF(AND(3000<D2,D2<=4000),D2*0.59,IF(AND(4000<D2,D2<=5000),D2*0.52,IF(AND(5000<D2,D2<=6000),D2*0.45,IF(AND(6000<D2,D2<=7000),D2*0.4,D4)))))))","v":0},"KVA"]
[null,null,null,{"$f":"IF(AND(D2>7000,D2<=8000),D2*0.35,IF(AND(D2>8000,D2<=9000),D2*0.31,IF(AND(D2>9000,D2<=10000),D2*0.27,D2*0.24)))","v":0}]
[null,null,"GRUPO 2","POTÊNCIA","QTDE"]
[null,null,"CARGA",{"$f":"SUM('Cálculo de Demanda'!F35:F44)","v":0},{"$f":"SUM('Cálculo de Demanda'!E35:E44)","v":0},"W"]
[null,null,"DEMANDA",{"$f":"IF(E6<=2,D6*1,IF(E6=3,D6*0.84,IF(E6=4,D6*0.76,IF(E6=5,D6*0.7,IF(E6=6,D6*0.65,IF(E6=7,D6*0.6,IF(E6=8,D6*0.57,IF(E6=9,D6*0.54,D8))))))))","v":0},"KVA"]
[null,null,null,{"$f":"IF(E6<=10,D6*0.52,IF(E6<=11,D6*0.49,IF(E6<=12,D6*0.48,IF(E6<=13,D6*0.46,IF(E6<=14,D6*0.45,IF(E6<=15,D6*0.44,IF(E6<=16,D6*0.43,IF(E6<=17,D6*0.42,D6*0.41))))))))","v":0}]
[null,null,"GRUPO 3","POTÊNCIA","QTDE"]
[null,null,"CARGA",{"$f":"SUM('Cálculo de Demanda'!F47:F50)","v":0},{"$f":"SUM('Cálculo de Demanda'!E47:E50)","v":0},"W"]
[null,null,"DEMANDA",{"$f":"IF(E10=1,D10*1,IF(E10=2,D10*0.72,IF(E10=3,D10*0.62,D10*0.62)))","v":0}]
[]
[null,null,"GRUPO 4","POTÊNCIA","QTDE"]
[null,null,"CARGA",{"$f":"SUM('Cálculo de Demanda'!L8:L18)","v":0},{"$f":"SUM('Cálculo de Demanda'!K8:K18)","v":0},"W"]
[null,null,"DEMANDA",{"$f":"IF(E14=1,D14*1,IF(AND(E14>=2,E14<=4),D14*0.7,IF(AND(E14>=5,E14<=6),D14*0.6,D14*0.5)))","v":0}]
[]
[null,null,"GRUPO 6","POTÊNCIA","QTDE"]
[null,null,"CARGA",{"$f":"SUM('Cálculo de Demanda'!M21:M29)","v":0},{"$f":"SUM('Cálculo de Demanda'!K21:K29)","v":0},"W"]
[null,null,"DEMANDA",{"$f":"IF(E18<11,D18*1,IF(E18<21,D18*0.9,IF(E18<31,D18*0.8,IF(E18<41,D18*0.77,D18*0.75))))","v":0}]
[]
[null,null,"GRUPO 7"]
[null,null,null,"MAIOR MOTOR","QUANTIDADE"]
[null,null,{"$f":"IF(AND(D23>=$D$23,D23>=$D$24,D23>=$D$25,D23>=$D$26,D23>=$D$27,D23>=$D$28,D23>=$D$29,D23>=$D$30,D23>=$D$31,D23>=$D$32,D23>=$D$33,D23>=$D$34,D23>=$D$35,D23>=$D$36,D23>=$D$37,D23>=$D$38,D23>=$D$39,D23>=$D$40,D23>=$D$41),D23,0)","v":0},{"$f":"IF(AND('Cálculo de Demanda'!M32>='Cálculo de Demanda'!$M$32,'Cálculo de Demanda'!M32>='Cálculo de Demanda'!$M$33,'Cálculo de Demanda'!M32>='Cálculo de Demanda'!$M$34,'Cálculo de Demanda'!M32>='Cálculo de Demanda'!$M$35,'Cálculo de Demanda'!M32>='Cálculo de Demanda'!$M$36,'Cálculo de Demanda'!M32>='Cálculo de Demanda'!$M$37,'Cálculo de Demanda'!M32>='Cálculo de Demanda'!$M$38,'Cálculo de Demanda'!M32>='Cálculo de Demanda'!$M$39,'Cálculo de Demanda'!M32>='Cálculo de Demanda'!$M$40,'Cálculo de Demanda'!M32>='Cálculo de Demanda'!$M$41,'Cálculo de Demanda'!M32>='Cálculo de Demanda'!$M$42,'Cálculo de Demanda'!M32>='Cálculo de Demanda'!$M$43,'Cálculo de Demanda'!M32>='Cálculo de Demanda'!$M$44,'Cálculo de Demanda'!M32>='Cálculo de Demanda'!$M$45,'Cálculo de Demanda'!M32>='Cálculo de Demanda'!$M$46,'Cálculo de Demanda'!M32>='Cálculo de Demanda'!$M$47,'Cálculo de Demanda'!M32>='Cálculo de Demanda'!$M$48,'Cálculo de Demanda'!M32>='Cálculo de Demanda'!$L$49,'Cálculo de Demanda'!M32>='Cálculo de Demanda'!$L$50),'Cálculo de Demanda'!M32,0)","v":0}]
[null,null,{"$f":"IF(AND(D24>=$D$23,D24>=$D$24,D24>=$D$25,D24>=$D$26,D24>=$D$27,D24>=$D$28,D24>=$D$29,D24>=$D$30,D24>=$D$31,D24>=$D$32,D24>=$D$33,D24>=$D$34,D24>=$D$35,D24>=$D$36,D24>=$D$37,D24>=$D$38,D24>=$D$39,D24>=$D$40,D24>=$D$41),D24,0)","v":0},{"$f":"IF(AND('Cálculo de Demanda'!M33>='Cálculo de Demanda'!$M$32,'Cálculo de Demanda'!M33>='Cálculo de Demanda'!$M$33,'Cálculo de Demanda'!M33>='Cálculo de Demanda'!$M$34,'Cálculo de Demanda'!M33>='Cálculo de Demanda'!$M$35,'Cálculo de Demanda'!M33>='Cálculo de Demanda'!$M$36,'Cálculo de Demanda'!M33>='Cálculo de Demanda'!$M$37,'Cálculo de Demanda'!M33>='Cálculo de Demanda'!$M$38,'Cálculo de Demanda'!M33>='Cálculo de Demanda'!$M$39,'Cálculo de Demanda'!M33>='Cálculo de Demanda'!$M$40,'Cálculo de Demanda'!M33>='Cálculo de Demanda'!$M$41,'Cálculo de Demanda'!M33>='Cálculo de Demanda'!$M$42,'Cálculo de Demanda'!M33>='Cálculo de Demanda'!$M$43,'Cálculo de Demanda'!M33>='Cálculo de Demanda'!$M$44,'Cálculo de Demanda'!M33>='Cálculo de Demanda'!$M$45,'Cálculo de Demanda'!M33>='Cálculo de Demanda'!$M$46,'Cálculo de Demanda'!M33>='Cálculo de Demanda'!$M$47,'Cálculo de Demanda'!M33>='Cálculo de Demanda'!$M$48,'Cálculo de Demanda'!M33>='Cálculo de Demanda'!$L$49,'Cálculo de Demanda'!M33>='Cálculo de Demanda'!$L$50),'Cálculo de Demanda'!M33,0)","v":0},{"$f":"SUM('Cálculo de Demanda'!K32:K50)","v":0}]
[null,null,0,{"$f":"IF(AND('Cálculo de Demanda'!M34>='Cálculo de Demanda'!$M$32,'Cálculo de Demanda'!M34>='Cálculo de Demanda'!$M$33,'Cálculo de Demanda'!M34>='Cálculo de Demanda'!$M$34,'Cálculo de Demanda'!M34>='Cálculo de Demanda'!$M$35,'Cálculo de Demanda'!M34>='Cálculo de Demanda'!$M$36,'Cálculo de Demanda'!M34>='Cálculo de Demanda'!$M$37,'Cálculo de Demanda'!M34>='Cálculo de Demanda'!$M$38,'Cálculo de Demanda'!M34>='Cálculo de Demanda'!$M$39,'Cálculo de Demanda'!M34>='Cálculo de Demanda'!$M$40,'Cálculo de Demanda'!M34>='Cálculo de Demanda'!$M$41,'Cálculo de Demanda'!M34>='Cálculo de Demanda'!$M$42,'Cálculo de Demanda'!M34>='Cálculo de Demanda'!$M$43,'Cálculo de Demanda'!M34>='Cálculo de Demanda'!$M$44,'Cálculo de Demanda'!M34>='Cálculo de Demanda'!$M$45,'Cálculo de Demanda'!M34>='Cálculo de Demanda'!$M$46,'Cálculo de Demanda'!M34>='Cálculo de Demanda'!$M$47,'Cálculo de Demanda'!M34>='Cálculo de Demanda'!$M$48,'Cálculo de Demanda'!M34>='Cálculo de Demanda'!$L$49,'Cálculo de Demanda'!M34>='Cálculo de Demanda'!$L$50),'Cálculo de Demanda'!M34,0)","v":0}]
[null,null,0,{"$f":"IF(AND('Cálculo de Demanda'!M35>='Cálculo de Demanda'!$M$32,'Cálculo de Demanda'!M35>='Cálculo de Demanda'!$M$33,'Cálculo de Demanda'!M35>='Cálculo de Demanda'!$M$34,'Cálculo de Demanda'!M35>='Cálculo de Demanda'!$M$35,'Cálculo de Demanda'!M35>='Cálculo de Demanda'!$M$36,'Cálculo de Demanda'!M35>='Cálculo de Demanda'!$M$37,'Cálculo de Demanda'!M35>='Cálculo de Demanda'!$M$38,'Cálculo de Demanda'!M35>='Cálculo de Demanda'!$M$39,'Cálculo de Demanda'!M35>='Cálculo de Demanda'!$M$40,'Cálculo de Demanda'!M35>='Cálculo de Demanda'!$M$41,'Cálculo de Demanda'!M35>='Cálculo de Demanda'!$M$42,'Cálculo de Demanda'!M35>='Cálculo de Demanda'!$M$43,'Cálculo de Demanda'!M35>='Cálculo de Demanda'!$M$44,'Cálculo de Demanda'!M35>='Cálculo de Demanda'!$M$45,'Cálculo de Demanda'!M35>='Cálculo de Demanda'!$M$46,'Cálculo de Demanda'!M35>='Cálculo de Demanda'!$M$47,'Cálculo de Demanda'!M35>='Cálculo de Demanda'!$M$48,'Cálculo de Demanda'!M35>='Cálculo de Demanda'!$L$49,'Cálculo de Demanda'!M35>='Cálculo de Demanda'!$L$50),'Cálculo de Demanda'!M35,0)","v":0}]
[null,null,0,{"$f":"IF(AND('Cálculo de Demanda'!M36>='Cálculo de Demanda'!$M$32,'Cálculo de Demanda'!M36>='Cálculo de Demanda'!$M$33,'Cálculo de Demanda'!M36>='Cálculo de Demanda'!$M$34,'Cálculo de Demanda'!M36>='Cálculo de Demanda'!$M$35,'Cálculo de Demanda'!M36>='Cálculo de Demanda'!$M$36,'Cálculo de Demanda'!M36>='Cálculo de Demanda'!$M$37,'Cálculo de Demanda'!M36>='Cálculo de Demanda'!$M$38,'Cálculo de Demanda'!M36>='Cálculo de Demanda'!$M$39,'Cálculo de Demanda'!M36>='Cálculo de Demanda'!$M$40,'Cálculo de Demanda'!M36>='Cálculo de Demanda'!$M$41,'Cálculo de Demanda'!M36>='Cálculo de Demanda'!$M$42,'Cálculo de Demanda'!M36>='Cálculo de Demanda'!$M$43,'Cálculo de Demanda'!M36>='Cálculo de Demanda'!$M$44,'Cálculo de Demanda'!M36>='Cálculo de Demanda'!$M$45,'Cálculo de Demanda'!M36>='Cálculo de Demanda'!$M$46,'Cálculo de Demanda'!M36>='Cálculo de Demanda'!$M$47,'Cálculo de Demanda'!M36>='Cálculo de Demanda'!$M$48,'Cálculo de Demanda'!M36>='Cálculo de Demanda'!$L$49,'Cálculo de Demanda'!M36>='Cálculo de Demanda'!$L$50),'Cálculo de Demanda'!M36,0)","v":0},"MAIOR MOTOR",{"$f":"SUM(C23:C41)","v":0}]
[null,null,0,{"$f":"IF(AND('Cálculo de Demanda'!M37>='Cálculo de Demanda'!$M$32,'Cálculo de Demanda'!M37>='Cálculo de Demanda'!$M$33,'Cálculo de Demanda'!M37>='Cálculo de Demanda'!$M$34,'Cálculo de Demanda'!M37>='Cálculo de Demanda'!$M$35,'Cálculo de Demanda'!M37>='Cálculo de Demanda'!$M$36,'Cálculo de Demanda'!M37>='Cálculo de Demanda'!$M$37,'Cálculo de Demanda'!M37>='Cálculo de Demanda'!$M$38,'Cálculo de Demanda'!M37>='Cálculo de Demanda'!$M$39,'Cálculo de Demanda'!M37>='Cálculo de Demanda'!$M$40,'Cálculo de Demanda'!M37>='Cálculo de Demanda'!$M$41,'Cálculo de Demanda'!M37>='Cálculo de Demanda'!$M$42,'Cálculo de Demanda'!M37>='Cálculo de Demanda'!$M$43,'Cálculo de Demanda'!M37>='Cálculo de Demanda'!$M$44,'Cálculo de Demanda'!M37>='Cálculo de Demanda'!$M$45,'Cálculo de Demanda'!M37>='Cálculo de Demanda'!$M$46,'Cálculo de Demanda'!M37>='Cálculo de Demanda'!$M$47,'Cálculo de Demanda'!M37>='Cálculo de Demanda'!$M$48,'Cálculo de Demanda'!M37>='Cálculo de Demanda'!$L$49,'Cálculo de Demanda'!M37>='Cálculo de Demanda'!$L$50),'Cálculo de Demanda'!M37,0)","v":0}]
[null,null,0,{"$f":"IF(AND('Cálculo de Demanda'!M38>='Cálculo de Demanda'!$M$32,'Cálculo de Demanda'!M38>='Cálculo de Demanda'!$M$33,'Cálculo de Demanda'!M38>='Cálculo de Demanda'!$M$34,'Cálculo de Demanda'!M38>='Cálculo de Demanda'!$M$35,'Cálculo de Demanda'!M38>='Cálculo de Demanda'!$M$36,'Cálculo de Demanda'!M38>='Cálculo de Demanda'!$M$37,'Cálculo de Demanda'!M38>='Cálculo de Demanda'!$M$38,'Cálculo de Demanda'!M38>='Cálculo de Demanda'!$M$39,'Cálculo de Demanda'!M38>='Cálculo de Demanda'!$M$40,'Cálculo de Demanda'!M38>='Cálculo de Demanda'!$M$41,'Cálculo de Demanda'!M38>='Cálculo de Demanda'!$M$42,'Cálculo de Demanda'!M38>='Cálculo de Demanda'!$M$43,'Cálculo de Demanda'!M38>='Cálculo de Demanda'!$M$44,'Cálculo de Demanda'!M38>='Cálculo de Demanda'!$M$45,'Cálculo de Demanda'!M38>='Cálculo de Demanda'!$M$46,'Cálculo de Demanda'!M38>='Cálculo de Demanda'!$M$47,'Cálculo de Demanda'!M38>='Cálculo de Demanda'!$M$48,'Cálculo de Demanda'!M38>='Cálculo de Demanda'!$L$49,'Cálculo de Demanda'!M38>='Cálculo de Demanda'!$L$50),'Cálculo de Demanda'!M38,0)","v":0},"CÁLCULO DA POTENCIA E DEMANDA DOS MOTORES"]
[null,null,0,{"$f":"IF(AND('Cálculo de Demanda'!M39>='Cálculo de Demanda'!$M$32,'Cálculo de Demanda'!M39>='Cálculo de Demanda'!$M$33,'Cálculo de Demanda'!M39>='Cálculo de Demanda'!$M$34,'Cálculo de Demanda'!M39>='Cálculo de Demanda'!$M$35,'Cálculo de Demanda'!M39>='Cálculo de Demanda'!$M$36,'Cálculo de Demanda'!M39>='Cálculo de Demanda'!$M$37,'Cálculo de Demanda'!M39>='Cálculo de Demanda'!$M$38,'Cálculo de Demanda'!M39>='Cálculo de Demanda'!$M$39,'Cálculo de Demanda'!M39>='Cálculo de Demanda'!$M$40,'Cálculo de Demanda'!M39>='Cálculo de Demanda'!$M$41,'Cálculo de Demanda'!M39>='Cálculo de Demanda'!$M$42,'Cálculo de Demanda'!M39>='Cálculo de Demanda'!$M$43,'Cálculo de Demanda'!M39>='Cálculo de Demanda'!$M$44,'Cálculo de Demanda'!M39>='Cálculo de Demanda'!$M$45,'Cálculo de Demanda'!M39>='Cálculo de Demanda'!$M$46,'Cálculo de Demanda'!M39>='Cálculo de Demanda'!$M$47,'Cálculo de Demanda'!M39>='Cálculo de Demanda'!$M$48,'Cálculo de Demanda'!M39>='Cálculo de Demanda'!$L$49,'Cálculo de Demanda'!M39>='Cálculo de Demanda'!$L$50),'Cálculo de Demanda'!M39,0)","v":0}]
[null,null,0,{"$f":"IF(AND('Cálculo de Demanda'!M40>='Cálculo de Demanda'!$M$32,'Cálculo de Demanda'!M40>='Cálculo de Demanda'!$M$33,'Cálculo de Demanda'!M40>='Cálculo de Demanda'!$M$34,'Cálculo de Demanda'!M40>='Cálculo de Demanda'!$M$35,'Cálculo de Demanda'!M40>='Cálculo de Demanda'!$M$36,'Cálculo de Demanda'!M40>='Cálculo de Demanda'!$M$37,'Cálculo de Demanda'!M40>='Cálculo de Demanda'!$M$38,'Cálculo de Demanda'!M40>='Cálculo de Demanda'!$M$39,'Cálculo de Demanda'!M40>='Cálculo de Demanda'!$M$40,'Cálculo de Demanda'!M40>='Cálculo de Demanda'!$M$41,'Cálculo de Demanda'!M40>='Cálculo de Demanda'!$M$42,'Cálculo de Demanda'!M40>='Cálculo de Demanda'!$M$43,'Cálculo de Demanda'!M40>='Cálculo de Demanda'!$M$44,'Cálculo de Demanda'!M40>='Cálculo de Demanda'!$M$45,'Cálculo de Demanda'!M40>='Cálculo de Demanda'!$M$46,'Cálculo de Demanda'!M40>='Cálculo de Demanda'!$M$47,'Cálculo de Demanda'!M40>='Cálculo de Demanda'!$M$48,'Cálculo de Demanda'!M40>='Cálculo de Demanda'!$L$49,'Cálculo de Demanda'!M40>='Cálculo de Demanda'!$L$50),'Cálculo de Demanda'!M40,0)","v":0}]
[null,null,0,{"$f":"IF(AND('Cálculo de Demanda'!M41>='Cálculo de Demanda'!$M$32,'Cálculo de Demanda'!M41>='Cálculo de Demanda'!$M$33,'Cálculo de Demanda'!M41>='Cálculo de Demanda'!$M$34,'Cálculo de Demanda'!M41>='Cálculo de Demanda'!$M$35,'Cálculo de Demanda'!M41>='Cálculo de Demanda'!$M$36,'Cálculo de Demanda'!M41>='Cálculo de Demanda'!$M$37,'Cálculo de Demanda'!M41>='Cálculo de Demanda'!$M$38,'Cálculo de Demanda'!M41>='Cálculo de Demanda'!$M$39,'Cálculo de Demanda'!M41>='Cálculo de Demanda'!$M$40,'Cálculo de Demanda'!M41>='Cálculo de Demanda'!$M$41,'Cálculo de Demanda'!M41>='Cálculo de Demanda'!$M$42,'Cálculo de Demanda'!M41>='Cálculo de Demanda'!$M$43,'Cálculo de Demanda'!M41>='Cálculo de Demanda'!$M$44,'Cálculo de Demanda'!M41>='Cálculo de Demanda'!$M$45,'Cálculo de Demanda'!M41>='Cálculo de Demanda'!$M$46,'Cálculo de Demanda'!M41>='Cálculo de Demanda'!$M$47,'Cálculo de Demanda'!M41>='Cálculo de Demanda'!$M$48,'Cálculo de Demanda'!M41>='Cálculo de Demanda'!$L$49,'Cálculo de Demanda'!M41>='Cálculo de Demanda'!$L$50),'Cálculo de Demanda'!M41,0)","v":0}]
[null,null,0,{"$f":"IF(AND('Cálculo de Demanda'!M42>='Cálculo de Demanda'!$M$32,'Cálculo de Demanda'!M42>='Cálculo de Demanda'!$M$33,'Cálculo de Demanda'!M42>='Cálculo de Demanda'!$M$34,'Cálculo de Demanda'!M42>='Cálculo de Demanda'!$M$35,'Cálculo de Demanda'!M42>='Cálculo de Demanda'!$M$36,'Cálculo de Demanda'!M42>='Cálculo de Demanda'!$M$37,'Cálculo de Demanda'!M42>='Cálculo de Demanda'!$M$38,'Cálculo de Demanda'!M42>='Cálculo de Demanda'!$M$39,'Cálculo de Demanda'!M42>='Cálculo de Demanda'!$M$40,'Cálculo de Demanda'!M42>='Cálculo de Demanda'!$M$41,'Cálculo de Demanda'!M42>='Cálculo de Demanda'!$M$42,'Cálculo de Demanda'!M42>='Cálculo de Demanda'!$M$43,'Cálculo de Demanda'!M42>='Cálculo de Demanda'!$M$44,'Cálculo de Demanda'!M42>='Cálculo de Demanda'!$M$45,'Cálculo de Demanda'!M42>='Cálculo de Demanda'!$M$46,'Cálculo de Demanda'!M42>='Cálculo de Demanda'!$M$47,'Cálculo de Demanda'!M42>='Cálculo de Demanda'!$M$48,'Cálculo de Demanda'!M42>='Cálculo de Demanda'!$L$49,'Cálculo de Demanda'!M42>='Cálculo de Demanda'!$L$50),'Cálculo de Demanda'!M42,0)","v":0}]
[null,null,0,{"$f":"IF(AND('Cálculo de Demanda'!M43>='Cálculo de Demanda'!$M$32,'Cálculo de Demanda'!M43>='Cálculo de Demanda'!$M$33,'Cálculo de Demanda'!M43>='Cálculo de Demanda'!$M$34,'Cálculo de Demanda'!M43>='Cálculo de Demanda'!$M$35,'Cálculo de Demanda'!M43>='Cálculo de Demanda'!$M$36,'Cálculo de Demanda'!M43>='Cálculo de Demanda'!$M$37,'Cálculo de Demanda'!M43>='Cálculo de Demanda'!$M$38,'Cálculo de Demanda'!M43>='Cálculo de Demanda'!$M$39,'Cálculo de Demanda'!M43>='Cálculo de Demanda'!$M$40,'Cálculo de Demanda'!M43>='Cálculo de Demanda'!$M$41,'Cálculo de Demanda'!M43>='Cálculo de Demanda'!$M$42,'Cálculo de Demanda'!M43>='Cálculo de Demanda'!$M$43,'Cálculo de Demanda'!M43>='Cálculo de Demanda'!$M$44,'Cálculo de Demanda'!M43>='Cálculo de Demanda'!$M$45,'Cálculo de Demanda'!M43>='Cálculo de Demanda'!$M$46,'Cálculo de Demanda'!M43>='Cálculo de Demanda'!$M$47,'Cálculo de Demanda'!M43>='Cálculo de Demanda'!$M$48,'Cálculo de Demanda'!M43>='Cálculo de Demanda'!$L$49,'Cálculo de Demanda'!M43>='Cálculo de Demanda'!$L$50),'Cálculo de Demanda'!M43,0)","v":0},"POTENCIA TOTAL"]
[null,null,0,{"$f":"IF(AND('Cálculo de Demanda'!M44>='Cálculo de Demanda'!$M$32,'Cálculo de Demanda'!M44>='Cálculo de Demanda'!$M$33,'Cálculo de Demanda'!M44>='Cálculo de Demanda'!$M$34,'Cálculo de Demanda'!M44>='Cálculo de Demanda'!$M$35,'Cálculo de Demanda'!M44>='Cálculo de Demanda'!$M$36,'Cálculo de Demanda'!M44>='Cálculo de Demanda'!$M$37,'Cálculo de Demanda'!M44>='Cálculo de Demanda'!$M$38,'Cálculo de Demanda'!M44>='Cálculo de Demanda'!$M$39,'Cálculo de Demanda'!M44>='Cálculo de Demanda'!$M$40,'Cálculo de Demanda'!M44>='Cálculo de Demanda'!$M$41,'Cálculo de Demanda'!M44>='Cálculo de Demanda'!$M$42,'Cálculo de Demanda'!M44>='Cálculo de Demanda'!$M$43,'Cálculo de Demanda'!M44>='Cálculo de Demanda'!$M$44,'Cálculo de Demanda'!M44>='Cálculo de Demanda'!$M$45,'Cálculo de Demanda'!M44>='Cálculo de Demanda'!$M$46,'Cálculo de Demanda'!M44>='Cálculo de Demanda'!$M$47,'Cálculo de Demanda'!M44>='Cálculo de Demanda'!$M$48,'Cálculo de Demanda'!M44>='Cálculo de Demanda'!$L$49,'Cálculo de Demanda'!M44>='Cálculo de Demanda'!$L$50),'Cálculo de Demanda'!M44,0)","v":0},{"$f":"SUM('Cálculo de Demanda'!M32:M50)","v":0}]
[null,null,0,{"$f":"IF(AND('Cálculo de Demanda'!M45>='Cálculo de Demanda'!$M$32,'Cálculo de Demanda'!M45>='Cálculo de Demanda'!$M$33,'Cálculo de Demanda'!M45>='Cálculo de Demanda'!$M$34,'Cálculo de Demanda'!M45>='Cálculo de Demanda'!$M$35,'Cálculo de Demanda'!M45>='Cálculo de Demanda'!$M$36,'Cálculo de Demanda'!M45>='Cálculo de Demanda'!$M$37,'Cálculo de Demanda'!M45>='Cálculo de Demanda'!$M$38,'Cálculo de Demanda'!M45>='Cálculo de Demanda'!$M$39,'Cálculo de Demanda'!M45>='Cálculo de Demanda'!$M$40,'Cálculo de Demanda'!M45>='Cálculo de Demanda'!$M$41,'Cálculo de Demanda'!M45>='Cálculo de Demanda'!$M$42,'Cálculo de Demanda'!M45>='Cálculo de Demanda'!$M$43,'Cálculo de Demanda'!M45>='Cálculo de Demanda'!$M$44,'Cálculo de Demanda'!M45>='Cálculo de Demanda'!$M$45,'Cálculo de Demanda'!M45>='Cálculo de Demanda'!$M$46,'Cálculo de Demanda'!M45>='Cálculo de Demanda'!$M$47,'Cálculo de Demanda'!M45>='Cálculo de Demanda'!$M$48,'Cálculo de Demanda'!M45>='Cálculo de Demanda'!$L$49,'Cálculo de Demanda'!M45>='Cálculo de Demanda'!$L$50),'Cálculo de Demanda'!M45,0)","v":0}]
[null,null,0,{"$f":"IF(AND('Cálculo de Demanda'!M46>='Cálculo de Demanda'!$M$32,'Cálculo de Demanda'!M46>='Cálculo de Demanda'!$M$33,'Cálculo de Demanda'!M46>='Cálculo de Demanda'!$M$34,'Cálculo de Demanda'!M46>='Cálculo de Demanda'!$M$35,'Cálculo de Demanda'!M46>='Cálculo de Demanda'!$M$36,'Cálculo de Demanda'!M46>='Cálculo de Demanda'!$M$37,'Cálculo de Demanda'!M46>='Cálculo de Demanda'!$M$38,'Cálculo de Demanda'!M46>='Cálculo de Demanda'!$M$39,'Cálculo de Demanda'!M46>='Cálculo de Demanda'!$M$40,'Cálculo de Demanda'!M46>='Cálculo de Demanda'!$M$41,'Cálculo de Demanda'!M46>='Cálculo de Demanda'!$M$42,'Cálculo de Demanda'!M46>='Cálculo de Demanda'!$M$43,'Cálculo de Demanda'!M46>='Cálculo de Demanda'!$M$44,'Cálculo de Demanda'!M46>='Cálculo de Demanda'!$M$45,'Cálculo de Demanda'!M46>='Cálculo de Demanda'!$M$46,'Cálculo de Demanda'!M46>='Cálculo de Demanda'!$M$47,'Cálculo de Demanda'!M46>='Cálculo de Demanda'!$M$48,'Cálculo de Demanda'!M46>='Cálculo de Demanda'!$L$49,'Cálculo de Demanda'!M46>='Cálculo de Demanda'!$L$50),'Cálculo de Demanda'!M46,0)","v":0},"DEMANDA TOTAL"]
[null,null,0,{"$f":"IF(AND('Cálculo de Demanda'!M47>='Cálculo de Demanda'!$M$32,'Cálculo de Demanda'!M47>='Cálculo de Demanda'!$M$33,'Cálculo de Demanda'!M47>='Cálculo de Demanda'!$M$34,'Cálculo de Demanda'!M47>='Cálculo de Demanda'!$M$35,'Cálculo de Demanda'!M47>='Cálculo de Demanda'!$M$36,'Cálculo de Demanda'!M47>='Cálculo de Demanda'!$M$37,'Cálculo de Demanda'!M47>='Cálculo de Demanda'!$M$38,'Cálculo de Demanda'!M47>='Cálculo de Demanda'!$M$39,'Cálculo de Demanda'!M47>='Cálculo de Demanda'!$M$40,'Cálculo de Demanda'!M47>='Cálculo de Demanda'!$M$41,'Cálculo de Demanda'!M47>='Cálculo de Demanda'!$M$42,'Cálculo de Demanda'!M47>='Cálculo de Demanda'!$M$43,'Cálculo de Demanda'!M47>='Cálculo de Demanda'!$M$44,'Cálculo de Demanda'!M47>='Cálculo de Demanda'!$M$45,'Cálculo de Demanda'!M47>='Cálculo de Demanda'!$M$46,'Cálculo de Demanda'!M47>='Cálculo de Demanda'!$M$47,'Cálculo de Demanda'!M47>='Cálculo de Demanda'!$M$48,'Cálculo de Demanda'!M47>='Cálculo de Demanda'!$L$49,'Cálculo de Demanda'!M47>='Cálculo de Demanda'!$L$50),'Cálculo de Demanda'!M47,0)","v":0}]
[null,null,0,{"$f":"IF(AND('Cálculo de Demanda'!M48>='Cálculo de Demanda'!$M$32,'Cálculo de Demanda'!M48>='Cálculo de Demanda'!$M$33,'Cálculo de Demanda'!M48>='Cálculo de Demanda'!$M$34,'Cálculo de Demanda'!M48>='Cálculo de Demanda'!$M$35,'Cálculo de Demanda'!M48>='Cálculo de Demanda'!$M$36,'Cálculo de Demanda'!M48>='Cálculo de Demanda'!$M$37,'Cálculo de Demanda'!M48>='Cálculo de Demanda'!$M$38,'Cálculo de Demanda'!M48>='Cálculo de Demanda'!$M$39,'Cálculo de Demanda'!M48>='Cálculo de Demanda'!$M$40,'Cálculo de Demanda'!M48>='Cálculo de Demanda'!$M$41,'Cálculo de Demanda'!M48>='Cálculo de Demanda'!$M$42,'Cálculo de Demanda'!M48>='Cálculo de Demanda'!$M$43,'Cálculo de Demanda'!M48>='Cálculo de Demanda'!$M$44,'Cálculo de Demanda'!M48>='Cálculo de Demanda'!$M$45,'Cálculo de Demanda'!M48>='Cálculo de Demanda'!$M$46,'Cálculo de Demanda'!M48>='Cálculo de Demanda'!$M$47,'Cálculo de Demanda'!M48>='Cálculo de Demanda'!$M$48,'Cálculo de Demanda'!M48>='Cálculo de Demanda'!$L$49,'Cálculo de Demanda'!M48>='Cálculo de Demanda'!$L$50),'Cálculo de Demanda'!M48,0)","v":0},{"$f":"IF(E24=1,E35,IF(E24=2,E35*0.9,IF(AND(E24>=3,E24<=5),E35*0.8,E35*0.7)))","v":0}]
[null,null,0,{"$f":"IF(AND('Cálculo de Demanda'!M49>='Cálculo de Demanda'!$M$32,'Cálculo de Demanda'!M49>='Cálculo de Demanda'!$M$33,'Cálculo de Demanda'!M49>='Cálculo de Demanda'!$M$34,'Cálculo de Demanda'!M49>='Cálculo de Demanda'!$M$35,'Cálculo de Demanda'!M49>='Cálculo de Demanda'!$M$36,'Cálculo de Demanda'!M49>='Cálculo de Demanda'!$M$37,'Cálculo de Demanda'!M49>='Cálculo de Demanda'!$M$38,'Cálculo de Demanda'!M49>='Cálculo de Demanda'!$M$39,'Cálculo de Demanda'!M49>='Cálculo de Demanda'!$M$40,'Cálculo de Demanda'!M49>='Cálculo de Demanda'!$M$41,'Cálculo de Demanda'!M49>='Cálculo de Demanda'!$M$42,'Cálculo de Demanda'!M49>='Cálculo de Demanda'!$M$43,'Cálculo de Demanda'!M49>='Cálculo de Demanda'!$M$44,'Cálculo de Demanda'!M49>='Cálculo de Demanda'!$M$45,'Cálculo de Demanda'!M49>='Cálculo de Demanda'!$M$46,'Cálculo de Demanda'!M49>='Cálculo de Demanda'!$M$47,'Cálculo de Demanda'!M49>='Cálculo de Demanda'!$M$48,'Cálculo de Demanda'!M49>='Cálculo de Demanda'!$L$49,'Cálculo de Demanda'!M49>='Cálculo de Demanda'!$L$50),'Cálculo de Demanda'!M49,0)","v":0}]
[null,null,0,{"$f":"IF(AND('Cálculo de Demanda'!M50>='Cálculo de Demanda'!$M$32,'Cálculo de Demanda'!M50>='Cálculo de Demanda'!$M$33,'Cálculo de Demanda'!M50>='Cálculo de Demanda'!$M$34,'Cálculo de Demanda'!M50>='Cálculo de Demanda'!$M$35,'Cálculo de Demanda'!M50>='Cálculo de Demanda'!$M$36,'Cálculo de Demanda'!M50>='Cálculo de Demanda'!$M$37,'Cálculo de Demanda'!M50>='Cálculo de Demanda'!$M$38,'Cálculo de Demanda'!M50>='Cálculo de Demanda'!$M$39,'Cálculo de Demanda'!M50>='Cálculo de Demanda'!$M$40,'Cálculo de Demanda'!M50>='Cálculo de Demanda'!$M$41,'Cálculo de Demanda'!M50>='Cálculo de Demanda'!$M$42,'Cálculo de Demanda'!M50>='Cálculo de Demanda'!$M$43,'Cálculo de Demanda'!M50>='Cálculo de Demanda'!$M$44,'Cálculo de Demanda'!M50>='Cálculo de Demanda'!$M$45,'Cálculo de Demanda'!M50>='Cálculo de Demanda'!$M$46,'Cálculo de Demanda'!M50>='Cálculo de Demanda'!$M$47,'Cálculo de Demanda'!M50>='Cálculo de Demanda'!$M$48,'Cálculo de Demanda'!M50>='Cálculo de Demanda'!$L$49,'Cálculo de Demanda'!M50>='Cálculo de Demanda'!$L$50),'Cálculo de Demanda'!M50,0)","v":0}]
[]
[]
[]
[]
[null,null,"GRUPO 9","POTÊNCIA","QTDE"]
[null,null,"CARGA",{"$f":"SUM('Cálculo de Demanda'!L53:L56)","v":0},{"$f":"SUM('Cálculo de Demanda'!K53:K56)","v":0},"W"]
[null,null,"DEMANDA",{"$f":"IF(E47=1,D47*1,IF(E47=2,D47*0.56,IF(E47=3,D47*0.47,D47*0.39)))","v":0},"KVA"]
[]
[null,null,"GRUPO 8 - EQUIPAMENTOS ESPECIAIS"]
[null,null,"POTENCIA",{"$f":"SUM('Cálculo de Demanda'!F53:F56)","v":0},"QTDE",{"$f":"SUM('Cálculo de Demanda'!E53:E56)","v":0}]
[null,null,"DEMANDA",null,"FP",0.75]
[null,null,{"$f":"IF(AND(D53>D54,D53>D55,D53>D56),D53,0)","v":0},{"$f":"IF(AND('Cálculo de Demanda'!F53>'Cálculo de Demanda'!F54,'Cálculo de Demanda'!F53>'Cálculo de Demanda'!F55,'Cálculo de Demanda'!F53>'Cálculo de Demanda'!F56),'Cálculo de Demanda'!D53,0)","v":0}]
[null,null,{"$f":"IF(AND(D54>D55,D54>D56,D54>D53),D54,0)","v":0},{"$f":"IF(AND('Cálculo de Demanda'!F54>'Cálculo de Demanda'!F55,'Cálculo de Demanda'!F54>'Cálculo de Demanda'!F56),'Cálculo de Demanda'!D54,0)","v":0},"1°",{"$f":"SUM(C53:C56)","v":0}]
[null,null,{"$f":"IF(AND(D55>D56,D55>D54,D55>D53),D55,0)","v":0},{"$f":"IF(AND('Cálculo de Demanda'!F55>'Cálculo de Demanda'!F56),'Cálculo de Demanda'!D55,0)","v":0},"DEMANDA TOTAL"]
[null,null,{"$f":"IF(AND(D56>D55,D56>D54,D56>D53),D56,0)","v":0},{"$f":"IF(AND('Cálculo de Demanda'!F56>'Cálculo de Demanda'!F55,'Cálculo de Demanda'!F56>'Cálculo de Demanda'!F54,'Cálculo de Demanda'!F56>'Cálculo de Demanda'!F53),'Cálculo de Demanda'!D56,0)","v":0},{"$f":"((F54*1)/F52)+(((D51-F54)*0.6)/F52)","v":0}]

{"sheet":"OBSERVAÇÕES","index":2,"n_rows":13,"n_cols":17,"rows_kept":13,"cut":false,"hidden":false,"merged":[[0,0,1,14]]}
["Sugestões de Melhoria para Planilha pode ser Inserido aqui nesta \"aba\""]
[null,null,null,null,null,null,null,null,null,null,null,null,null,null,null,null,1]
[null,null,null,null,null,null,null,null,null,null,null,null,null,null,null,null,"NENHUM"]
[null,null,null,null,null,null,null,null,null,null,null,null,null,null,null,null,"RESIDENCIAL"]
[null,null,null,null,null,null,null,null,null,null,null,null,null,null,null,null,"COMERCIAL"]
["** O presente formulário de demanda, constitui com a formação de cálculos para auxiliar os consumidores ",null,null,null,null,null,null,null,null,null,null,null,null,null,null,null,"INDUSTRIAL"]
["da CERIM na solicitação de atendimento, porém limitado ao atendimento residêncial",null,null,null,null,null,null,null,null,null,null,null,null,null,null,null,"RURAL"]
[" solicitado para indústria e comércio pode ocorrer uma margem de erro de cerca de  ≈ 3,6%",null,null,null,null,null,null,null,null,null,null,null,null,null,null,null,"PODER PÚBLICO"]
[null,null,null,null,null,null,null,null,null,null,null,null,null,null,null,null,"SERVIÇO PÚBLICO"]
["*** Este formulário também contempla as tabelas da CPFL Piratininga norma técnica GED - 13. ",null,null,null,null,null,null,null,null,null,null,null,null,null,null,null,"ILUMINAÇÃO PÚBLICA"]
["Contudo as tabelas para a potencia instalada dos motores, estão somente abrangendo os motores trifásicos,"]
["não enquadra o uso dos motores monofásicos da tabela 14, gerando margem de erro quando utilizados"]
["motores para motores monofásico"]

{"sheet":"CONTROLE_REVISÃO","index":3,"n_rows":68,"n_cols":1,"rows_kept":68,"cut":false,"hidden":false,"merged":[[66,0,66,11],[67,0,72,11],[59,0,59,11],[60,0,65,11],[53,0,58,11],[9,0,11,11],[0,0,1,18],[12,0,12,11],[13,0,15,11],[8,0,8,11],[3,0,3,11],[16,0,16,11],[17,0,19,11],[31,0,31,11],[32,0,37,11],[25,0,30,11],[24,0,24,11],[20,0,20,11],[21,0,23,11],[45,0,45,11],[52,0,52,11],[46,0,51,11],[38,0,38,11],[39,0,44,11]]}
["CONTROLE DE REVISÕES DA PLANILHA"]
[]
[]
["CONTROLE DA REVISÃO 01"]
["·         Alterado a Caixa de Medição, limitando em Atendimento C6;"]
["·         Limitado a Cat. C5 e C6 dentro dos 75 kW;"]
["·         Limitado o disjuntor para a Cat. C5 e C6 para os 75 kW."]
["·         Alterado os calculos dos motores para atender a VER. 2.8 da GED - 13."]
["CONTROLE DA REVISÃO 02"]
["·         Feito melhorias para correção de erro para a categoria de atendimento nos itens; \"Cabo mm²\" - \"Caixa\" - \"Disjuntores (A)\" - \"Eletrodutos mm (pol)\" - \"Aterramento - Condutores mm² e Eletrodutos (pol)\" - \"Postes (Tubular de Aço (mm) e Concreto (daN))\" - \"Ramal de Ligação\";"]
[]
[]
["CONTROLE DA REVISÃO 03 - 30/09/2015"]
["·         Inserido Tabela 15 com especificação da potência dos motores para auxiliar o atendimento comercial dos motores não previamente cadastrados na planilha de atendimento de solicitação de carga."]
[]
[]
["CONTROLE DA REVISÃO 04 - 28/10/2015"]
["·        Corrigido Método de cálculo de potência dos motores. Corrigido Método de Cálculo dos Ares Condicionado, divergências para o Cálculo de Demanda."]
[]
[]
["CONTROLE DA REVISÃO 05 - 28/01/2016"]
["·        Removido Bairro, CPF, Endereço, Município, deixando Nome e Processo e incluindo Consumidor no Cabeçalho da Planilha. Incluido a categoria de atendimento fixa B1 e B2 como opção na contratação dos consumidores, incluído a opção da categoria de atendimento C1. Incluído as opções, Ligação Provisória sim ( )/Não ( ), Há Edificação Sim ( )/Não ( ), alterado a Nomenclatura, Cabos de Entrada para > Cabos de Entrada/Saída."]
[]
[]
["CONTROLE DA REVISÃO 06 - 18/03/2016"]
["·        Alterado Os Disjuntores das Categorias A1, A2 e B2 para atender a Revisão da Norma GED - 13 CPFL, versão 2.11 de 19/01/2016."]
[]
[]
[]
[]
[]
["CONTROLE DA REVISÃO 07 - 22/03/2016"]
["·        Alterado os métodos para o cálculo de demanda do Grupo 03, estavam convergindo com o cálculo do Grupo 02"]
[]
[]
[]
[]
[]
["CONTROLE DA REVISÃO 08 - 31/03/2016"]
["·        Alterado o Layout da Planilha, para categoria solicitada, categoria dimensionada, ligação provisória e há edificação"]
[]
[]
[]
[]
[]
["CONTROLE DA REVISÃO 09 - 03/06/2016"]
["·        Nos cálculos de demanda, foram realizadas correções de cálculo, atendendo a NORMA GED - 13 - CPFL"]
[]
[]
[]
[]
[]
["CONTROLE DA REVISÃO 10 - 09/09/2016"]
["·        Alterado a Tabela de consulta de Potencia dos motores, de kW para KVAr - Tabela 15 de Motores Trifásicos da GED 13 - CPFL Piratininga"]
[]
[]
[]
[]
[]
["CONTROLE DA REVISÃO 11 - 13/09/2016"]
["·        Alterado a Metodologia de cálculo do maior motor para eliminar erro quando adicionados novos motores na lista do Grupo 07 - Motores"]
[]
[]
[]
[]
[]
["CONTROLE DA REVISÃO 12 - 30/08/2017"]
["·        Excluido a possibilidade de uso desta planilha para classe diferentes da classe Residêncial."]